bitfinex-derivatives/quotes_BTCF0:USTF0_20260118
["timestamp","ask_amount","ask_price","bid_price","bid_amount"]
[1768701460384,1.3114,95041.0,95026.0,0.10283237]
[1768701460586,1.36878355,95041.0,95026.0,0.10283237]
[1768701460785,1.3791639,95041.0,95026.0,0.10283237]
[1768701461472,1.3791639,95041.0,95026.0,0.11335937]
[1768701462275,1.3791639,95041.0,95026.0,0.10414889]
[1768701463784,1.3791639,95041.0,95026.0,0.08017985]
[1768701464586,1.3791639,95041.0,95026.0,0.06965285]
[1768701464782,1.3791639,95041.0,95023.0,0.00921048]
[1768701466288,0.00955001,95040.0,95020.0,0.09362189]
[1768701467190,0.00955001,95040.0,95023.0,0.010527]
[1768701467992,0.00955001,95040.0,95024.0,0.010527]
[1768701468786,0.0677639,95041.0,95024.0,0.010527]
[1768701469088,0.00231472,95044.0,95028.0,0.010526]
[1768701469392,0.01303896,95044.0,95028.0,0.010526]
[1768701469888,0.07011981,95044.0,95028.0,0.010526]
[1768701470387,0.07011981,95044.0,95031.0,0.010526]
[1768701473187,0.07011981,95044.0,95030.0,0.010526]
[1768701473393,0.07011981,95044.0,95029.0,0.010526]
[1768701474490,0.07011981,95044.0,95028.0,0.09362189]
[1768701475492,0.00988271,95037.0,95022.0,0.010527]
[1768701475688,0.00988271,95035.0,95023.0,0.0948]
[1768701478791,0.02040771,95041.0,95023.0,0.0948]
[1768701478990,0.00988271,95040.0,95023.0,0.0948]
[1768701480299,0.00988271,95040.0,95024.0,0.010527]
[1768701480606,0.00988271,95040.0,95025.0,0.0948]
[1768701480802,0.00988271,95040.0,95020.0,0.010527]
[1768701481000,0.00988271,95040.0,95026.0,0.0948]
[1768701481301,0.00988271,95040.0,95020.0,0.01993216]
[1768701481597,0.00988271,95040.0,95022.0,0.010527]
[1768701482093,0.00988271,95040.0,95024.0,0.010527]
[1768701482299,0.00988271,95040.0,95025.0,0.0948]
[1768701482489,0.00988271,95040.0,95024.0,0.010527]
[1768701482697,0.00988271,95040.0,95021.0,0.01993216]
[1768701482896,0.00988271,95040.0,95022.0,0.0948]
[1768701483201,0.00988271,95040.0,95023.0,0.010527]
[1768701483696,0.09436388,95041.0,95023.0,0.010527]
[1768701484001,0.09436388,95041.0,95026.0,0.010527]
[1768701488109,0.10424659,95041.0,95025.0,0.010527]
[1768701489199,0.10424659,95041.0,95022.0,0.105327]
[1768701490406,0.010525,95040.0,95022.0,0.105327]
[1768701494805,0.10424659,95041.0,95022.0,0.105327]
[1768701495006,0.10424659,95041.0,95022.0,0.11473216]
[1768701496212,0.11477159,95041.0,95022.0,0.11473216]
[1768701499316,0.11069804,95040.0,95022.0,0.11473216]
[1768701499918,0.010525,95039.0,95022.0,0.11473216]
[1768701502214,0.010525,95039.0,95022.0,0.10420516]
[1768701502421,0.010525,95039.0,95022.0,0.19896687]
[1768701505921,0.010525,95039.0,95023.0,0.1039974]
[1768701507119,0.11069804,95040.0,95025.0,0.00923569]
[1768701507315,0.11069804,95040.0,95025.0,0.1039974]
[1768701507523,0.010525,95039.0,95025.0,0.1039974]
[1768701509126,0.010525,95039.0,95026.0,0.0948]
[1768701510525,0.11069804,95040.0,95026.0,0.0948]
[1768701512229,0.12122304,95040.0,95026.0,0.0948]
[1768701514437,0.010525,95038.0,95026.0,0.0948]
[1768701514934,0.11069804,95040.0,95026.0,0.0948]
[1768701518647,0.010525,95041.0,95026.0,0.0948]
[1768701518950,0.11069804,95040.0,95026.0,0.0948]
[1768701522350,0.08064481,95044.0,95027.0,0.00931822]
[1768701523253,0.07011981,95044.0,95027.0,0.00931822]
[1768701523854,0.07011981,95044.0,95027.0,0.01984422]
[1768701524045,0.14568515,95044.0,95026.0,0.06506314]
[1768701524352,0.14568515,95044.0,95027.0,0.010526]
[1768701524646,0.14568515,95044.0,95026.0,0.06506314]
[1768701525053,0.07011981,95044.0,95026.0,0.06506314]
[1768701525955,0.07011981,95044.0,95027.0,0.010526]
[1768701526248,0.07011981,95044.0,95027.0,0.01984422]
[1768701527955,0.07011981,95044.0,95027.0,0.05113291]
[1768701528258,0.010525,95043.0,95027.0,0.05113291]
[1768701528556,0.07011981,95044.0,95027.0,0.00931822]
[1768701528855,0.07011981,95044.0,95027.0,0.0510134]
[1768701529354,0.07011981,95044.0,95027.0,0.00931822]
[1768701530755,0.07011981,95044.0,95026.0,0.06506314]
[1768701532758,0.07011981,95044.0,95026.0,0.1063157]
[1768701533257,0.08064481,95044.0,95026.0,0.06506314]
[1768701534059,0.07011981,95044.0,95026.0,0.06506314]
[1768701534254,0.07011981,95044.0,95027.0,0.010526]
[1768701537663,0.07011981,95044.0,95029.0,0.010526]
[1768701539263,0.07011981,95044.0,95028.0,0.010526]
[1768701540868,0.07011981,95044.0,95026.0,0.06506314]
[1768701541062,0.07011981,95044.0,95027.0,0.010526]
[1768701541762,0.07011981,95044.0,95029.0,0.010526]
[1768701541963,0.07011981,95044.0,95031.0,0.010526]
[1768701544370,0.01303896,95044.0,95033.0,0.010526]
[1768701547770,0.01303896,95044.0,95035.0,0.010526]
[1768701549367,0.01303896,95044.0,95027.0,0.10883817]
[1768701549368,0.00231472,95044.0,95037.0,0.010525]
[1768701549572,0.00231461,95049.0,95037.0,0.010525]
[1768701549765,0.00231461,95049.0,95039.0,0.010525]
[1768701552173,0.01270372,95049.0,95039.0,0.010525]
[1768701554676,0.01270372,95049.0,95034.0,0.00663875]
[1768701554969,0.01270372,95049.0,95039.0,0.010525]
[1768701560186,0.00231461,95049.0,95040.0,0.010525]
[1768701560380,0.00231461,95049.0,95042.0,0.010525]
[1768701560778,0.00934056,95057.0,95042.0,0.010525]
[1768701560979,0.00934056,95056.0,95042.0,0.010525]
[1768701561284,0.00934056,95056.0,95037.0,0.10393303]
[1768701561479,0.00934056,95056.0,95037.0,0.105325]
[1768701561674,0.00934056,95055.0,95037.0,0.105325]
[1768701562687,0.00934056,95055.0,95037.0,0.08135939]
[1768701568186,0.010524,95054.0,95037.0,0.07083439]
[1768701575484,0.010524,95052.0,95037.0,0.07083439]
[1768701578390,0.010524,95052.0,95037.0,0.08074784]
[1768701581890,0.010524,95052.0,95038.0,0.00991345]
[1768701582390,0.010524,95052.0,95039.0,0.10655539]
[1768701582591,0.010524,95052.0,95040.0,0.00991345]
[1768701583292,0.010524,95052.0,95039.0,0.09664194]
[1768701586693,0.010523,95055.0,95039.0,0.10655539]
[1768701588594,0.010524,95053.0,95039.0,0.10655539]
[1768701588997,0.010524,95053.0,95039.0,0.20135539]
[1768701589895,0.010524,95053.0,95040.0,0.10655539]
[1768701590090,0.010524,95053.0,95042.0,0.00991345]
[1768701590388,0.01045316,95057.0,95042.0,0.00991345]
[1768701590594,0.010523,95056.0,95042.0,0.00991345]
[1768701594391,0.01073153,95057.0,95046.0,0.10376199]
[1768701594598,0.010523,95059.0,95046.0,0.00253295]
[1768701599299,0.010523,95059.0,95044.0,0.00956721]
[1768701599699,0.02115428,95059.0,95044.0,0.00956721]
[1768701600391,0.01063128,95059.0,95041.0,0.09419478]
[1768701600592,0.06722735,95062.0,95041.0,0.09419478]
[1768701600792,0.010523,95056.0,95041.0,0.09419478]
[1768701601389,0.010523,95059.0,95044.0,0.00956721]
[1768701601595,0.05745952,95062.0,95051.0,0.00956721]
[1768701601797,0.00231423,95064.0,95051.0,0.00956721]
[1768701601997,0.01283612,95069.0,95052.0,0.00956721]
[1768701601998,0.00231412,95069.0,95052.0,0.00956721]
[1768701602197,0.00231412,95069.0,95053.0,0.00956721]
[1768701602399,0.00231412,95069.0,95053.0,0.02009121]
[1768701602600,0.010522,95068.0,95053.0,0.00956721]
[1768701602999,0.02126514,95068.0,95053.0,0.00956721]
[1768701603401,0.01074314,95068.0,95053.0,0.00956721]
[1768701603600,0.05946666,95069.0,95053.0,0.00956721]
[1768701604307,0.05946666,95069.0,95055.0,0.00956721]
[1768701605400,0.06998866,95069.0,95055.0,0.00956721]
[1768701605801,0.06975708,95069.0,95055.0,0.00956721]
[1768701606807,0.08027908,95069.0,95055.0,0.00956721]
[1768701607307,0.06975708,95069.0,95055.0,0.00956721]
[1768701609611,0.01260454,95069.0,95055.0,0.00956721]
[1768701614013,0.01260454,95069.0,95054.0,0.09419478]
[1768701614215,0.01260454,95069.0,95052.0,0.00956721]
[1768701617620,0.01260454,95069.0,95052.0,0.02009121]
[1768701618114,0.01260454,95069.0,95054.0,0.010523]
[1768701618318,0.01260454,95069.0,95052.0,0.00956721]
[1768701618507,0.010521,95077.0,95057.0,0.00956721]
[1768701618709,0.06766295,95077.0,95057.0,0.00956721]
[1768701619209,0.06690978,95077.0,95057.0,0.02009021]
[1768701619409,0.06690978,95077.0,95060.0,0.11060457]
[1768701619615,0.07721408,95077.0,95060.0,0.11060457]
[1768701621205,0.06744625,95077.0,95060.0,0.11060457]
[1768701621400,0.1064991,95080.0,95060.0,0.12112757]
[1768701621606,0.00976783,95078.0,95060.0,0.12112757]
[1768701622809,0.010521,95077.0,95060.0,0.11060457]
[1768701623217,0.02032399,95077.0,95060.0,0.11060457]
[1768701623611,0.03104547,95077.0,95060.0,0.11060457]
[1768701625222,0.02052447,95077.0,95060.0,0.11060457]
[1768701625923,0.01072148,95077.0,95060.0,0.11966239]
[1768701626223,0.09770218,95078.0,95060.0,0.11966239]
[1768701627421,0.00980299,95076.0,95057.0,0.09476]
[1768701627627,0.10750517,95076.0,95057.0,0.09476]
[1768701628125,0.00980299,95074.0,95057.0,0.09476]
[1768701628720,0.00980299,95073.0,95057.0,0.09476]
[1768701634430,0.08536833,95073.0,95057.0,0.02558427]
[1768701634631,0.00980299,95073.0,95057.0,0.02558427]
[1768701636724,0.00980299,95073.0,95052.0,0.00905782]
[1768701636725,0.00999773,95072.0,95052.0,0.00905782]
[1768701636927,0.10939472,95069.0,95053.0,0.09476]
[1768701637124,0.10939472,95066.0,95053.0,0.09476]
[1768701637628,0.09939699,95066.0,95053.0,0.09476]
[1768701639832,0.1206023,95070.0,95053.0,0.09476]
[1768701640434,0.00999773,95070.0,95053.0,0.09476]
[1768701640932,0.00999773,95070.0,95053.0,0.105284]
[1768701641918,0.00999773,95074.0,95055.0,0.010523]
[1768701642118,0.00999773,95074.0,95055.0,0.02008092]
[1768701642823,0.07556534,95076.0,95061.0,0.00955792]
[1768701643122,0.17032534,95076.0,95061.0,0.00955792]
[1768701644020,0.09476,95076.0,95061.0,0.00955792]
[1768701644630,0.09476,95076.0,95059.0,0.010523]
[1768701646132,0.17032534,95076.0,95059.0,0.010523]
[1768701646534,0.17032534,95076.0,95059.0,0.01547032]
[1768701646840,0.07556534,95074.0,95059.0,0.00494732]
[1768701648122,0.07556534,95074.0,95061.0,0.00494348]
[1768701648335,0.07556534,95073.0,95061.0,0.00494348]
[1768701651038,0.07556534,95073.0,95060.0,0.11060457]
[1768701651638,0.08608634,95074.0,95060.0,0.11060457]
[1768701654038,0.07556534,95072.0,95060.0,0.02702531]
[1768701654747,0.07556534,95074.0,95060.0,0.11060457]
[1768701655341,0.09743469,95071.0,95053.0,0.07463648]
[1768701656145,0.10703089,95071.0,95053.0,0.07463648]
[1768701659645,0.09743469,95071.0,95053.0,0.07463648]
[1768701660949,0.09743469,95071.0,95054.0,0.010524]
[1768701662047,0.09743469,95071.0,95056.0,0.010523]
[1768701662247,0.09743469,95071.0,95060.0,0.11060457]
[1768701662445,0.01046616,95077.0,95060.0,0.11060457]
[1768701662746,0.09743469,95081.0,95067.0,0.11060457]
[1768701663044,0.09743469,95081.0,95060.0,0.15434156]
[1768701663245,0.15479415,95081.0,95070.0,0.11060457]
[1768701663952,0.15479415,95081.0,95060.0,0.15434156]
[1768701664144,0.15479415,95081.0,95061.0,0.010523]
[1768701664746,0.15479415,95081.0,95060.0,0.0453928]
[1768701665152,0.05735946,95081.0,95070.0,0.11060457]
[1768701665351,0.07578302,95072.0,95061.0,0.010523]
[1768701665746,0.07578302,95073.0,95061.0,0.010523]
[1768701665944,0.07578302,95073.0,95063.0,0.010522]
[1768701666552,0.0942736,95083.0,95071.0,0.010522]
[1768701666852,0.01073203,95084.0,95071.0,0.010522]
[1768701667052,0.0095962,95088.0,95070.0,0.11060457]
[1768701667053,0.0201162,95088.0,95070.0,0.11060457]
[1768701667246,0.07784164,95088.0,95070.0,0.11060457]
[1768701668151,0.01052,95086.0,95070.0,0.11060457]
[1768701668750,0.09658723,95089.0,95070.0,0.11060457]
[1768701668751,0.01052,95087.0,95070.0,0.11060457]
[1768701668942,0.01052,95087.0,95068.0,0.00386318]
[1768701669148,0.01052,95088.0,95070.0,0.11060457]
[1768701669549,0.00231363,95089.0,95071.0,0.00386318]
[1768701669949,0.01283363,95089.0,95071.0,0.00386318]
[1768701670253,0.01283363,95089.0,95070.0,0.11060457]
[1768701670655,0.00231363,95089.0,95070.0,0.11060457]
[1768701671051,0.01052,95083.0,95070.0,0.11060457]
[1768701671854,0.01052,95085.0,95070.0,0.11060457]
[1768701674954,0.01283363,95089.0,95075.0,0.11060457]
[1768701675157,0.01052,95087.0,95079.0,0.11060457]
[1768701675354,0.01052,95087.0,95076.0,0.09476]
[1768701676061,0.00231363,95089.0,95077.0,0.09476]
[1768701676259,0.00231363,95089.0,95071.0,0.00323985]
[1768701676260,0.01052,95082.0,95075.0,0.09476]
[1768701677460,0.01052,95085.0,95075.0,0.09476]
[1768701677858,0.01052,95083.0,95075.0,0.09476]
[1768701680955,0.010521,95081.0,95074.0,0.09476]
[1768701681264,0.010521,95077.0,95072.0,0.09476]
[1768701681454,0.010521,95075.0,95071.0,0.09476]
[1768701681649,0.010521,95078.0,95071.0,0.09476]
[1768701682255,0.01052,95082.0,95071.0,0.09476]
[1768701682559,0.010521,95078.0,95071.0,0.09476]
[1768701683961,0.010521,95081.0,95071.0,0.09476]
[1768701684864,0.10795469,95084.0,95071.0,0.09476]
[1768701687163,0.09743469,95084.0,95071.0,0.09476]
[1768701688868,0.01052,95083.0,95071.0,0.09476]
[1768701689364,0.09743469,95084.0,95071.0,0.09476]
[1768701690065,0.01052,95083.0,95071.0,0.09476]
[1768701690366,0.09743469,95084.0,95071.0,0.09476]
[1768701692262,0.01052,95086.0,95071.0,0.09476]
[1768701694963,0.01052,95085.0,95071.0,0.09476]
[1768701696057,0.00231363,95089.0,95071.0,0.09476]
[1768701696058,0.01052,95088.0,95071.0,0.09476]
[1768701696768,0.00231363,95089.0,95071.0,0.09476]
[1768701696969,0.01052,95085.0,95071.0,0.09476]
[1768701698269,0.01052,95086.0,95071.0,0.09476]
[1768701700466,0.01283363,95089.0,95071.0,0.09476]
[1768701700674,0.10508661,95089.0,95071.0,0.09476]
[1768701703067,0.01052,95086.0,95071.0,0.09476]
[1768701703673,0.10508661,95089.0,95071.0,0.09476]
[1768701704070,0.10508661,95089.0,95071.0,0.03058485]
[1768701704984,0.01052,95086.0,95071.0,0.03058485]
[1768701706677,0.18072746,95089.0,95071.0,0.03058485]
[1768701707067,0.07564085,95088.0,95071.0,0.03058485]
[1768701707265,0.07564085,95088.0,95071.0,0.04110685]
[1768701708773,0.00231363,95089.0,95071.0,0.03058485]
[1768701709278,0.00231363,95089.0,95075.0,0.010521]
[1768701712378,0.00231363,95089.0,95072.0,0.010522]
[1768701712973,0.00231363,95089.0,95074.0,0.010521]
[1768701713781,0.00231363,95089.0,95072.0,0.010521]
[1768701714977,0.00231363,95089.0,95074.0,0.010521]
[1768701719592,0.00231363,95089.0,95071.0,0.03058485]
[1768701719593,0.00231363,95089.0,95071.0,0.04110685]
[1768701720103,0.00231363,95089.0,95073.0,0.010521]
[1768701721796,0.01052,95085.0,95071.0,0.03058485]
[1768701722396,0.01052,95082.0,95071.0,0.03058485]
[1768701722804,0.01052,95086.0,95071.0,0.03058485]
[1768701724304,0.10064158,95086.0,95071.0,0.03058485]
[1768701724499,0.01052,95084.0,95071.0,0.03058485]
[1768701724906,0.09012158,95086.0,95071.0,0.03058485]
[1768701725898,0.10064158,95086.0,95071.0,0.03058485]
[1768701727310,0.09012158,95086.0,95071.0,0.03058485]
[1768701727907,0.01052,95085.0,95071.0,0.03058485]
[1768701728411,0.10064158,95085.0,95071.0,0.03058485]
[1768701728609,0.09012158,95085.0,95071.0,0.03058485]
[1768701730210,0.09012158,95085.0,95072.0,0.010521]
[1768701730804,0.09012158,95085.0,95071.0,0.03058485]
[1768701733515,0.09012158,95085.0,95072.0,0.010521]
[1768701734308,0.09012158,95085.0,95071.0,0.03058485]
[1768701734511,0.09012158,95085.0,95071.0,0.04110685]
[1768701735606,0.09012158,95085.0,95071.0,0.03058485]
[1768701738319,0.01052,95084.0,95071.0,0.03058485]
[1768701740409,0.09012158,95085.0,95071.0,0.03058485]
[1768701741815,0.10064158,95085.0,95071.0,0.03058485]
[1768701742020,0.09012158,95085.0,95071.0,0.03058485]
[1768701742611,0.01052,95088.0,95071.0,0.04110685]
[1768701743013,0.09858716,95089.0,95071.0,0.03058485]
[1768701744019,0.10679353,95087.0,95071.0,0.03058485]
[1768701746524,0.09627353,95087.0,95071.0,0.04110685]
[1768701747425,0.10679353,95087.0,95071.0,0.03058485]
[1768701747727,0.11607127,95087.0,95071.0,0.03058485]
[1768701748517,0.10679353,95085.0,95071.0,0.03058485]
[1768701750226,0.09627353,95085.0,95071.0,0.03058485]
[1768701751227,0.09627353,95085.0,95071.0,0.07302812]
[1768701751525,0.09627353,95085.0,95071.0,0.03058485]
[1768701752617,0.09627353,95085.0,95071.0,0.04110685]
[1768701754328,0.10679353,95085.0,95071.0,0.03058485]
[1768701755032,0.09627353,95085.0,95071.0,0.04110685]
[1768701757232,0.09627353,95085.0,95071.0,0.03058485]
[1768701757932,0.09284467,95083.0,95071.0,0.03058485]
[1768701763821,0.09284467,95081.0,95071.0,0.03058485]
[1768701764026,0.10336567,95080.0,95071.0,0.03058485]
[1768701764428,0.09284467,95080.0,95071.0,0.03058485]
[1768701783041,0.09284467,95080.0,95074.0,0.010521]
[1768701783245,0.09284467,95080.0,95071.0,0.03058485]
[1768701783445,0.09284467,95080.0,95072.0,0.010522]
[1768701784745,0.09284467,95080.0,95071.0,0.03058485]
[1768701785248,0.09284467,95080.0,95072.0,0.010522]
[1768701788952,0.09284467,95080.0,95070.0,0.11057775]
[1768701793256,0.09284467,95080.0,95070.0,0.12109975]
[1768701793452,0.09284467,95080.0,95072.0,0.010521]
[1768701793960,0.00984969,95087.0,95074.0,0.010521]
[1768701794162,0.00984969,95087.0,95070.0,0.11057775]
[1768701794548,0.00984969,95087.0,95076.0,0.010521]
[1768701795455,0.00984969,95092.0,95081.0,0.01052]
[1768701795653,0.010519,95098.0,95080.0,0.11057775]
[1768701795860,0.09784037,95097.0,95082.0,0.01052]
[1768701796060,0.09784037,95097.0,95084.0,0.01052]
[1768701796355,0.09784037,95097.0,95086.0,0.01052]
[1768701796555,0.09784037,95097.0,95088.0,0.01052]
[1768701797353,0.09784037,95097.0,95085.0,0.01052]
[1768701797545,0.09784037,95097.0,95082.0,0.09476]
[1768701798462,0.09784037,95097.0,95086.0,0.01052]
[1768701799056,0.09784037,95097.0,95085.0,0.01052]
[1768701801158,0.09784037,95097.0,95087.0,0.11057775]
[1768701801360,0.00984969,95102.0,95093.0,0.010519]
[1768701802463,0.00231326,95104.0,95093.0,0.010519]
[1768701802660,0.00231326,95104.0,95095.0,0.010519]
[1768701803349,0.00231326,95104.0,95097.0,0.010519]
[1768701803748,0.00231326,95104.0,95085.0,0.00987365]
[1768701803962,0.00231326,95104.0,95095.0,0.010519]
[1768701804961,0.00231326,95104.0,95085.0,0.00987365]
[1768701805164,0.00231326,95104.0,95094.0,0.010519]
[1768701805870,0.00231326,95104.0,95090.0,0.010519]
[1768701806056,0.01172713,95104.0,95090.0,0.010519]
[1768701806368,0.00941387,95103.0,95090.0,0.010519]
[1768701806666,0.00941387,95103.0,95087.0,0.01052]
[1768701806867,0.00941387,95102.0,95087.0,0.01052]
[1768701808069,0.10207879,95102.0,95084.0,0.01052]
[1768701808764,0.00941387,95100.0,95084.0,0.01052]
[1768701809065,0.10207879,95099.0,95083.0,0.01052]
[1768701809567,0.00231326,95104.0,95084.0,0.08472]
[1768701809568,0.00941387,95090.0,95084.0,0.08472]
[1768701809761,0.00941387,95089.0,95082.0,0.09472]
[1768701809963,0.00941387,95094.0,95082.0,0.09472]
[1768701816573,0.00955631,95097.0,95082.0,0.09472]
[1768701817467,0.00955631,95100.0,95082.0,0.09472]
[1768701819171,0.00955631,95100.0,95082.0,0.19139622]
[1768701819376,0.00955631,95100.0,95083.0,0.01052]
[1768701825381,0.00955631,95100.0,95082.0,0.20191622]
[1768701826580,0.010518,95103.0,95083.0,0.09667622]
[1768701826967,0.0202271,95103.0,95083.0,0.09667622]
[1768701829385,0.0202271,95103.0,95083.0,0.10608236]
[1768701829586,0.0202271,95103.0,95084.0,0.10608236]
[1768701831288,0.0097091,95103.0,95084.0,0.10608236]
[1768701831480,0.010518,95102.0,95084.0,0.10608236]
[1768701833787,0.010518,95102.0,95085.0,0.00955055]
[1768701833989,0.010518,95102.0,95085.0,0.10188238]
[1768701835586,0.010518,95102.0,95086.0,0.10188238]
[1768701835793,0.010519,95100.0,95086.0,0.10188238]
[1768701835999,0.010519,95100.0,95086.0,0.09233183]
[1768701836990,0.010519,95098.0,95086.0,0.09233183]
[1768701841092,0.010518,95101.0,95086.0,0.09233183]
[1768701842893,0.010518,95101.0,95086.0,0.10188238]
[1768701843291,0.01283126,95104.0,95086.0,0.10188238]
[1768701843491,0.01283126,95104.0,95087.0,0.10188238]
[1768701843892,0.00231326,95104.0,95088.0,0.00955055]
[1768701844092,0.00231326,95104.0,95089.0,0.10188238]
[1768701844394,0.00231326,95104.0,95089.0,0.09492279]
[1768701844695,0.00231326,95104.0,95090.0,0.00955055]
[1768701846296,0.00231326,95104.0,95091.0,0.09233183]
[1768701846493,0.07564085,95109.0,95098.0,0.09233183]
[1768701846699,0.09472,95108.0,95098.0,0.0347238]
[1768701847289,0.17036085,95108.0,95098.0,0.0347238]
[1768701847590,0.09472,95108.0,95098.0,0.0347238]
[1768701850197,0.17036085,95108.0,95098.0,0.0347238]
[1768701850499,0.17036085,95108.0,95098.0,0.02517325]
[1768701850892,0.17036085,95108.0,95095.0,0.00955055]
[1768701851391,0.18087885,95108.0,95095.0,0.00955055]
[1768701851586,0.010518,95104.0,95092.0,0.09233183]
[1768701852195,0.010518,95107.0,95092.0,0.09233183]
[1768701852591,0.010518,95105.0,95092.0,0.09233183]
[1768701853197,0.010518,95103.0,95092.0,0.09233183]
[1768701854695,0.010518,95106.0,95092.0,0.09233183]
[1768701855404,0.010518,95106.0,95092.0,0.10188238]
[1768701856792,0.010518,95104.0,95092.0,0.10188238]
[1768701859400,0.20109874,95114.0,95093.0,0.00955055]
[1768701859603,0.010517,95110.0,95094.0,0.00955055]
[1768701859898,0.010517,95110.0,95095.0,0.00955055]
[1768701861803,0.010517,95113.0,95095.0,0.00955055]
[1768701863399,0.11053375,95110.0,95095.0,0.00955055]
[1768701865607,0.010517,95109.0,95095.0,0.00955055]
[1768701867599,0.010517,95113.0,95095.0,0.00955055]
[1768701867800,0.010517,95113.0,95097.0,0.00966355]
[1768701868200,0.11053375,95110.0,95097.0,0.00966355]
[1768701873501,0.010517,95112.0,95096.0,0.09876481]
[1768701873700,0.11053375,95110.0,95096.0,0.09876481]
[1768701874608,0.11053375,95110.0,95094.0,0.010519]
[1768701874808,0.11053375,95110.0,95093.0,0.00966355]
[1768701874809,0.11053375,95110.0,95093.0,0.00689656]
[1768701875408,0.12105075,95110.0,95093.0,0.00689656]
[1768701875804,0.11053375,95110.0,95093.0,0.00689656]
[1768701877709,0.07564085,95112.0,95094.0,0.00928772]
[1768701878311,0.010517,95111.0,95090.0,0.11982147]
[1768701878612,0.010517,95111.0,95091.0,0.00928772]
[1768701879316,0.010517,95111.0,95093.0,0.00928772]
[1768701879516,0.07564085,95111.0,95094.0,0.010519]
[1768701880317,0.07564085,95111.0,95094.0,0.01980672]
[1768701882717,0.07564085,95111.0,95094.0,0.00663629]
[1768701883409,0.07564085,95111.0,95094.0,0.01715529]
[1768701884324,0.17183651,95112.0,95094.0,0.01715529]
[1768701884509,0.10572129,95111.0,95089.0,0.09472]
[1768701884709,0.10572129,95111.0,95091.0,0.00928772]
[1768701885422,0.10572129,95111.0,95093.0,0.010519]
[1768701886222,0.18136214,95111.0,95093.0,0.010519]
[1768701887520,0.18136214,95111.0,95095.0,0.010519]
[1768701889624,0.17183651,95111.0,95095.0,0.010519]
[1768701890523,0.18235351,95111.0,95091.0,0.00928772]
[1768701890726,0.17183651,95111.0,95094.0,0.010519]
[1768701891319,0.10572129,95110.0,95092.0,0.010519]
[1768701891525,0.10572129,95110.0,95094.0,0.010519]
[1768701892623,0.10572129,95110.0,95091.0,0.00928772]
[1768701892824,0.10572129,95110.0,95092.0,0.010519]
[1768701893129,0.00981489,95108.0,95092.0,0.010519]
[1768701893428,0.00981489,95108.0,95090.0,0.11053375]
[1768701894327,0.07564085,95101.0,95090.0,0.03304489]
[1768701894523,0.07564085,95101.0,95090.0,0.11053375]
[1768701894719,0.07564085,95102.0,95090.0,0.11053375]
[1768701896515,0.07564085,95101.0,95090.0,0.11053375]
[1768701897026,0.07564085,95102.0,95090.0,0.11053375]
[1768701897230,0.07564085,95101.0,95090.0,0.11053375]
[1768701897729,0.07564085,95101.0,95091.0,0.010519]
[1768701899830,0.07564085,95101.0,95090.0,0.12105275]
[1768701900334,0.07564085,95101.0,95090.0,0.010519]
[1768701900729,0.07564085,95101.0,95090.0,0.12105275]
[1768701902728,0.07564085,95101.0,95091.0,0.00927158]
[1768701902927,0.07564085,95101.0,95092.0,0.01357503]
[1768701903227,0.07564085,95101.0,95093.0,0.00927158]
[1768701903632,0.07564085,95101.0,95091.0,0.010519]
[1768701903831,0.07564085,95102.0,95091.0,0.010519]
[1768701904231,0.11522873,95110.0,95091.0,0.010519]
[1768701904433,0.22576248,95110.0,95091.0,0.010519]
[1768701904634,0.010518,95107.0,95090.0,0.11980533]
[1768701905030,0.22576248,95110.0,95090.0,0.11980533]
[1768701905225,0.22576248,95110.0,95090.0,0.13032433]
[1768701906230,0.22576248,95110.0,95090.0,0.01979058]
[1768701906535,0.010518,95108.0,95090.0,0.11980533]
[1768701906929,0.11522973,95108.0,95090.0,0.11053375]
[1768701907329,0.010518,95106.0,95090.0,0.11053375]
[1768701907528,0.010518,95106.0,95089.0,0.09472]
[1768701908425,0.11522973,95106.0,95089.0,0.09472]
[1768701912227,0.10471173,95106.0,95089.0,0.09472]
[1768701912738,0.10471173,95106.0,95089.0,0.10524]
[1768701912927,0.09489684,95106.0,95089.0,0.10524]
[1768701914850,0.09489684,95106.0,95091.0,0.010519]
[1768701917152,0.09489684,95106.0,95089.0,0.10524]
[1768701919848,0.10541484,95106.0,95089.0,0.10524]
[1768701921451,0.10541484,95106.0,95089.0,0.09472]
[1768701921653,0.10471173,95106.0,95087.0,0.01052]
[1768701922459,0.10471173,95106.0,95087.0,0.02038992]
[1768701923061,0.10471173,95106.0,95089.0,0.01052]
[1768701923258,0.09579337,95100.0,95084.0,0.00231374]
[1768701923457,0.10565987,95097.0,95084.0,0.00231374]
[1768701923755,0.010518,95102.0,95084.0,0.00231374]
[1768701923962,0.07564085,95109.0,95084.0,0.00231374]
[1768701924160,0.07564085,95109.0,95085.0,0.09472]
[1768701924662,0.07564085,95108.0,95085.0,0.09472]
[1768701925353,0.1047906,95117.0,95085.0,0.09472]
[1768701925354,0.07564085,95109.0,95085.0,0.09472]
[1768701925549,0.010518,95103.0,95085.0,0.09472]
[1768701925757,0.10565987,95094.0,95084.0,0.00231374]
[1768701928659,0.09579337,95094.0,95084.0,0.00231374]
[1768701934162,0.09579337,95094.0,95084.0,0.00070425]
[1768701934470,0.10479592,95094.0,95079.0,0.010521]
[1768701934867,0.10520106,95093.0,95077.0,0.09472]
[1768701935063,0.10520106,95092.0,95077.0,0.09472]
[1768701935463,0.10520106,95092.0,95077.0,0.105241]
[1768701935664,0.10520106,95092.0,95079.0,0.010521]
[1768701936764,0.10520106,95092.0,95081.0,0.01052]
[1768701937065,0.10520106,95092.0,95078.0,0.010521]
[1768701937864,0.10520106,95092.0,95080.0,0.010521]
[1768701940362,0.09048097,95092.0,95080.0,0.010521]
[1768701940561,0.08065556,95092.0,95080.0,0.010521]
[1768701940865,0.0659022,95092.0,95080.0,0.010521]
[1768701941063,0.06097931,95092.0,95080.0,0.010521]
[1768701941257,0.05112833,95092.0,95080.0,0.010521]
[1768701941456,0.04128202,95092.0,95080.0,0.010521]
[1768701944768,0.04128202,95092.0,95077.0,0.09472]
[1768701944769,0.01052,95087.0,95077.0,0.09472]
[1768701944969,0.0039551,95087.0,95077.0,0.09472]
[1768701947869,0.09619851,95088.0,95077.0,0.09472]
[1768701948066,0.00399729,95095.0,95080.0,0.010521]
[1768701948271,0.09871729,95099.0,95080.0,0.010521]
[1768701948681,0.1001958,95097.0,95080.0,0.010521]
[1768701948880,0.00399729,95096.0,95080.0,0.010521]
[1768701949067,0.1001958,95096.0,95080.0,0.010521]
[1768701949974,0.105239,95099.0,95077.0,0.10405245]
[1768701949975,0.10016402,95091.0,95077.0,0.105241]
[1768701950675,0.09619851,95091.0,95077.0,0.105241]